[Event "*** MasterClass Titled Tuesday Blitz"]
[Site "Chess.com"]
[Date "2017.11.07"]
[Round "2"]
[White "VladDobrov"]
[Black "HarutyunianTigranK"]
[Result "1/2-1/2"]
[WhiteElo "2667"]
[BlackElo "2571"]
[TimeControl "180+2"]
[EndTime "14:31:39 PST"]
[Termination "Game drawn - insufficient material"]

1. d4 {[%clk 0:03:01.9]} 1... Nf6 {[%clk 0:03:00.8]} 2. c4 {[%clk 0:03:02.4]}
2... e6 {[%clk 0:03:02]} 3. Nf3 {[%clk 0:03:03.1]} 3... d5 {[%clk 0:03:03.5]} 4.
g3 {[%clk 0:03:04]} 4... Be7 {[%clk 0:03:03.8]} 5. Bg2 {[%clk 0:03:04.7]} 5...
O-O {[%clk 0:03:05.4]} 6. Qc2 {[%clk 0:02:58.1]} 6... b6 {[%clk 0:02:54.5]} 7.
O-O {[%clk 0:02:57.8]} 7... Bb7 {[%clk 0:02:55.6]} 8. Rd1 {[%clk 0:02:52.7]}
8... Nbd7 {[%clk 0:02:52.8]} 9. Ne5 {[%clk 0:02:40.7]} 9... c5 {[%clk
0:02:29.5]} 10. cxd5 {[%clk 0:02:40.4]} 10... exd5 {[%clk 0:02:23.3]} 11. Nc3
{[%clk 0:02:25.3]} 11... a6 {[%clk 0:02:10.9]} 12. Bf4 {[%clk 0:02:23.7]} 12...
Rc8 {[%clk 0:02:09.2]} 13. Nxd7 {[%clk 0:02:16.2]} 13... Qxd7 {[%clk 0:02:09.4]}
14. dxc5 {[%clk 0:02:11.1]} 14... bxc5 {[%clk 0:02:09.1]} 15. Nxd5 {[%clk
0:01:46]} 15... Nxd5 {[%clk 0:01:40.5]} 16. Bxd5 {[%clk 0:01:43.9]} 16... Bxd5
{[%clk 0:01:40.4]} 17. e4 {[%clk 0:01:44.3]} 17... Bxe4 {[%clk 0:01:37.1]} 18.
Qxe4 {[%clk 0:01:37]} 18... Qa7 {[%clk 0:01:37.4]} 19. Be5 {[%clk 0:01:28.9]}
19... Rfe8 {[%clk 0:01:36.9]} 20. Bc3 {[%clk 0:01:28.4]} 20... Bf6 {[%clk
0:01:35.8]} 21. Qc4 {[%clk 0:01:25.3]} 21... Bxc3 {[%clk 0:01:30.4]} 22. Qxc3
{[%clk 0:01:26.1]} 22... Qb7 {[%clk 0:01:13.8]} 23. Re1 {[%clk 0:01:22.6]} 23...
h6 {[%clk 0:01:11.2]} 24. Rad1 {[%clk 0:01:22.1]} 24... Rxe1+ {[%clk 0:01:07.6]}
25. Rxe1 {[%clk 0:01:22.3]} 25... c4 {[%clk 0:01:01.1]} 26. h4 {[%clk
0:01:12.3]} 26... Qd5 {[%clk 0:01:01.8]} 27. Re5 {[%clk 0:01:09.4]} 27... Qd3
{[%clk 0:00:56.7]} 28. Qxd3 {[%clk 0:01:02.3]} 28... cxd3 {[%clk 0:00:58.6]} 29.
Rd5 {[%clk 0:01:03.4]} 29... Rc2 {[%clk 0:00:59.2]} 30. Rxd3 {[%clk 0:01:03.4]}
30... Rxb2 {[%clk 0:01:00.3]} 31. Ra3 {[%clk 0:01:03.8]} 31... Rb6 {[%clk
0:01:01]} 32. Ra5 {[%clk 0:01:00]} 32... g6 {[%clk 0:00:56.1]} 33. Kg2 {[%clk
0:01:00]} 33... h5 {[%clk 0:00:56.8]} 34. Kf3 {[%clk 0:01:00.9]} 34... Kg7
{[%clk 0:00:58.2]} 35. Ke3 {[%clk 0:00:59.8]} 35... Rd6 {[%clk 0:00:57.4]} 36.
a4 {[%clk 0:00:57.6]} 36... Kf6 {[%clk 0:00:57.7]} 37. Rc5 {[%clk 0:00:58]}
37... Rb6 {[%clk 0:00:57]} 38. a5 {[%clk 0:00:57]} 38... Rd6 {[%clk 0:00:55.9]}
39. Ke4 {[%clk 0:00:55.5]} 39... Kg7 {[%clk 0:00:52.9]} 40. Rd5 {[%clk
0:00:51.8]} 40... Rf6 {[%clk 0:00:49.7]} 41. f3 {[%clk 0:00:49.8]} 41... Re6+
{[%clk 0:00:49.9]} 42. Kd4 {[%clk 0:00:50.1]} 42... Rc6 {[%clk 0:00:50.2]} 43.
Rc5 {[%clk 0:00:45.1]} 43... Rf6 {[%clk 0:00:51]} 44. Ke4 {[%clk 0:00:42.6]}
44... Rd6 {[%clk 0:00:50.5]} 45. Rc7 {[%clk 0:00:40.2]} 45... Re6+ {[%clk
0:00:50.6]} 46. Kd4 {[%clk 0:00:36.5]} 46... Rd6+ {[%clk 0:00:49.9]} 47. Kc5
{[%clk 0:00:31.3]} 47... Rd3 {[%clk 0:00:50.8]} 48. Kb6 {[%clk 0:00:30.4]} 48...
Rxf3 {[%clk 0:00:52.2]} 49. Kxa6 {[%clk 0:00:31.4]} 49... Rxg3 {[%clk
0:00:53.8]} 50. Rc4 {[%clk 0:00:20.7]} 50... g5 {[%clk 0:00:51.2]} 51. hxg5
{[%clk 0:00:20.7]} 51... Kg6 {[%clk 0:00:51.8]} 52. Kb5 {[%clk 0:00:21.8]} 52...
Rxg5+ {[%clk 0:00:51.9]} 53. Kb6 {[%clk 0:00:19.3]} 53... Rg1 {[%clk 0:00:52.4]}
54. a6 {[%clk 0:00:20.3]} 54... Ra1 {[%clk 0:00:53]} 55. a7 {[%clk 0:00:20.7]}
55... f5 {[%clk 0:00:51.2]} 56. Kb7 {[%clk 0:00:21.3]} 56... Kg5 {[%clk
0:00:50.7]} 57. Rc6 {[%clk 0:00:20.2]} 57... Rxa7+ {[%clk 0:00:49.2]} 58. Kxa7
{[%clk 0:00:22]} 58... h4 {[%clk 0:00:48.1]} 59. Kb6 {[%clk 0:00:23.9]} 59... h3
{[%clk 0:00:49.3]} 60. Rc2 {[%clk 0:00:18.4]} 60... Kg4 {[%clk 0:00:49.5]} 61.
Kc5 {[%clk 0:00:19.6]} 61... Kg3 {[%clk 0:00:26.3]} 62. Kd4 {[%clk 0:00:20.2]}
62... h2 {[%clk 0:00:27.3]} 63. Rxh2 {[%clk 0:00:20.1]} 63... Kxh2 {[%clk
0:00:27.4]} 64. Ke5 {[%clk 0:00:21.4]} 64... f4 {[%clk 0:00:28.5]} 65. Kxf4
{[%clk 0:00:21.6]} 1/2-1/2

[Event "*** MasterClass Titled Tuesday Blitz"]
[Site "Chess.com"]
[Date "2017.11.07"]
[Round "2"]
[White "evgenysharapov"]
[Black "AndrewMcStone"]
[Result "1-0"]
[WhiteElo "2249"]
[BlackElo "2087"]
[TimeControl "180+2"]
[EndTime "14:31:52 PST"]
[Termination "evgenysharapov won by resignation"]

1. e4 {[%clk 0:03:01.9]} 1... Nc6 {[%clk 0:02:59.4]} 2. d4 {[%clk 0:03:02.3]}
2... d5 {[%clk 0:03:00.2]} 3. Nc3 {[%clk 0:03:02.8]} 3... e6 {[%clk 0:03:00.1]}
4. Nf3 {[%clk 0:03:03.1]} 4... Nf6 {[%clk 0:03:01.3]} 5. Bd3 {[%clk 0:03:03.5]}
5... Bb4 {[%clk 0:03:00.5]} 6. e5 {[%clk 0:03:03.4]} 6... Ne4 {[%clk 0:03:01.7]}
7. Bd2 {[%clk 0:03:00.8]} 7... Nxd2 {[%clk 0:03:01.9]} 8. Qxd2 {[%clk
0:03:00.8]} 8... f6 {[%clk 0:03:03.1]} 9. exf6 {[%clk 0:02:54.4]} 9... Qxf6
{[%clk 0:03:03.2]} 10. O-O-O {[%clk 0:02:46.7]} 10... O-O {[%clk 0:02:49.3]} 11.
Kb1 {[%clk 0:02:44.9]} 11... Qf4 {[%clk 0:02:33.6]} 12. Qxf4 {[%clk 0:02:30.1]}
12... Rxf4 {[%clk 0:02:35.4]} 13. Ne2 {[%clk 0:02:25.2]} 13... Rf6 {[%clk
0:02:27.4]} 14. Ng3 {[%clk 0:02:21.4]} 14... g6 {[%clk 0:02:11.5]} 15. c3 {[%clk
0:02:21.1]} 15... Bd6 {[%clk 0:02:11.1]} 16. Rde1 {[%clk 0:02:14.6]} 16... Bd7
{[%clk 0:02:08.8]} 17. Re2 {[%clk 0:02:14.7]} 17... Raf8 {[%clk 0:02:06.7]} 18.
Rhe1 {[%clk 0:02:13.2]} 18... h6 {[%clk 0:01:56.5]} 19. Nf1 {[%clk 0:02:12.1]}
19... g5 {[%clk 0:01:47]} 20. Ne3 {[%clk 0:02:05.4]} 20... Rf4 {[%clk
0:01:47.6]} 21. h3 {[%clk 0:02:02.2]} 21... Kg7 {[%clk 0:00:42.2]} 22. Ng4
{[%clk 0:01:45.1]} 22... h5 {[%clk 0:00:41.8]} 23. Nge5 {[%clk 0:01:45.6]} 23...
Bxe5 {[%clk 0:00:42.1]} 24. Nxe5 {[%clk 0:01:46.4]} 24... Nxe5 {[%clk
0:00:41.5]} 25. Rxe5 {[%clk 0:01:47]} 25... Kh6 {[%clk 0:00:33.2]} 26. f3 {[%clk
0:01:45.4]} 26... b6 {[%clk 0:00:16.9]} 27. Kc2 {[%clk 0:01:44.5]} 27... c5
{[%clk 0:00:17.5]} 28. dxc5 {[%clk 0:01:31.5]} 28... bxc5 {[%clk 0:00:19.3]} 29.
b3 {[%clk 0:01:28.1]} 29... a5 {[%clk 0:00:15]} 30. a3 {[%clk 0:01:25.3]} 30...
a4 {[%clk 0:00:14.2]} 31. b4 {[%clk 0:01:25.5]} 31... c4 {[%clk 0:00:15.5]} 32.
Bf1 {[%clk 0:01:13.2]} 32... g4 {[%clk 0:00:11.4]} 33. hxg4 {[%clk 0:01:13.2]}
33... hxg4 {[%clk 0:00:13.3]} 34. Be2 {[%clk 0:01:11.7]} 34... g3 {[%clk
0:00:12.3]} 35. Rh1+ {[%clk 0:01:10.8]} 35... Kg6 {[%clk 0:00:10.1]} 36. Rh3
{[%clk 0:01:06.3]} 36... R4f5 {[%clk 0:00:06.8]} 37. Rxg3+ {[%clk 0:01:05.2]}
37... Kf6 {[%clk 0:00:07.8]} 38. Rxf5+ {[%clk 0:01:05.9]} 38... Kxf5 {[%clk
0:00:08.7]} 39. Rg7 {[%clk 0:01:04.7]} 39... Bc6 {[%clk 0:00:07.9]} 40. Kd2
{[%clk 0:00:59.3]} 40... Rh8 {[%clk 0:00:06.6]} 41. Ke3 {[%clk 0:00:50.6]} 41...
Rh1 {[%clk 0:00:06]} 42. Rc7 {[%clk 0:00:50.3]} 42... Be8 {[%clk 0:00:06]} 43.
g4+ {[%clk 0:00:49]} 43... Ke5 {[%clk 0:00:04.8]} 44. Re7 {[%clk 0:00:40.2]}
44... Bg6 {[%clk 0:00:03.6]} 45. b5 {[%clk 0:00:40]} 45... Rb1 {[%clk
0:00:03.3]} 46. f4+ {[%clk 0:00:35.5]} 46... Kd6 {[%clk 0:00:03.3]} 47. Rg7
{[%clk 0:00:36.1]} 47... Bc2 {[%clk 0:00:02.9]} 48. g5 {[%clk 0:00:20.7]} 48...
Rxb5 {[%clk 0:00:03.1]} 49. g6 {[%clk 0:00:21.6]} 49... Rb3 {[%clk 0:00:04.3]}
50. Rg8 {[%clk 0:00:20.6]} 50... Bxg6 {[%clk 0:00:04.2]} 51. Rxg6 {[%clk
0:00:20.6]} 51... Rxc3+ {[%clk 0:00:06]} 52. Kd2 {[%clk 0:00:20.6]} 52... Rxa3
{[%clk 0:00:07.9]} 53. f5 {[%clk 0:00:21.6]} 53... Ra2+ {[%clk 0:00:09.4]} 54.
Ke1 {[%clk 0:00:21.6]} 54... c3 {[%clk 0:00:10.5]} 55. Rxe6+ {[%clk 0:00:20.8]}
55... Kd7 {[%clk 0:00:11.7]} 56. Bb5+ {[%clk 0:00:19]} 56... Kd8 {[%clk
0:00:09.3]} 57. f6 {[%clk 0:00:19.7]} 57... c2 {[%clk 0:00:08.6]} 58. Rc6 {[%clk
0:00:20.4]} 58... Ra1+ {[%clk 0:00:09.7]} 59. Kd2 {[%clk 0:00:20.9]} 59... Rf1
{[%clk 0:00:08.9]} 60. Bxf1 {[%clk 0:00:20.4]} 1-0

[Event "*** MasterClass Titled Tuesday Blitz"]
[Site "Chess.com"]
[Date "2017.11.07"]
[Round "2"]
[White "DanielNaroditsky"]
[Black "ZapataCharlesS"]
[Result "1/2-1/2"]
[WhiteElo "2729"]
[BlackElo "2526"]
[TimeControl "180+2"]
[EndTime "14:31:54 PST"]
[Termination "Game drawn by repetition"]

1. b3 {[%clk 0:03:01.9]} 1... b6 {[%clk 0:02:59.3]} 2. Bb2 {[%clk 0:03:03.2]}
2... Bb7 {[%clk 0:02:58.6]} 3. Nf3 {[%clk 0:03:05.1]} 3... Nf6 {[%clk
0:02:57.8]} 4. e3 {[%clk 0:03:05.5]} 4... e6 {[%clk 0:02:58.3]} 5. d4 {[%clk
0:03:06.3]} 5... d5 {[%clk 0:02:57.5]} 6. Bd3 {[%clk 0:03:07.4]} 6... Bd6 {[%clk
0:02:52.9]} 7. O-O {[%clk 0:03:08.4]} 7... O-O {[%clk 0:02:51.3]} 8. c4 {[%clk
0:03:09.1]} 8... c5 {[%clk 0:02:51]} 9. cxd5 {[%clk 0:03:09.2]} 9... exd5 {[%clk
0:02:51.5]} 10. Nc3 {[%clk 0:03:08.2]} 10... Re8 {[%clk 0:02:51.8]} 11. Ne2
{[%clk 0:03:00.2]} 11... Nbd7 {[%clk 0:02:51.6]} 12. Ng3 {[%clk 0:03:00.9]}
12... g6 {[%clk 0:02:46.8]} 13. dxc5 {[%clk 0:02:47.6]} 13... bxc5 {[%clk
0:02:34.4]} 14. Bb5 {[%clk 0:02:48.8]} 14... Rf8 {[%clk 0:02:24.6]} 15. b4
{[%clk 0:02:50.2]} 15... cxb4 {[%clk 0:02:21.9]} 16. Qd4 {[%clk 0:02:51.2]}
16... Qb6 {[%clk 0:02:16.6]} 17. Qd3 {[%clk 0:02:40.9]} 17... a6 {[%clk
0:02:06.7]} 18. Bxd7 {[%clk 0:02:20.5]} 18... Nxd7 {[%clk 0:02:08.6]} 19. h4
{[%clk 0:02:19.8]} 19... Rfe8 {[%clk 0:02:04.1]} 20. Nf5 {[%clk 0:02:02.3]}
20... Bf8 {[%clk 0:01:48.7]} 21. h5 {[%clk 0:02:03.5]} 21... Qe6 {[%clk
0:01:40]} 22. hxg6 {[%clk 0:01:55.3]} 22... hxg6 {[%clk 0:01:34.3]} 23. Qd4
{[%clk 0:01:51.6]} 23... f6 {[%clk 0:01:32.7]} 24. Ng3 {[%clk 0:01:41.8]} 24...
Ne5 {[%clk 0:01:34.2]} 25. Qh4 {[%clk 0:01:31.3]} 25... Nxf3+ {[%clk 0:01:33.9]}
26. gxf3 {[%clk 0:01:32.1]} 26... Bg7 {[%clk 0:01:07.6]} 27. Qxb4 {[%clk
0:01:32.7]} 27... Rab8 {[%clk 0:01:06]} 28. Bd4 {[%clk 0:01:30.4]} 28... Bc6
{[%clk 0:01:04.3]} 29. Qc3 {[%clk 0:01:22.7]} 29... Bb5 {[%clk 0:01:06.2]} 30.
Rfc1 {[%clk 0:01:22.2]} 30... Rec8 {[%clk 0:01:02.8]} 31. Qd2 {[%clk 0:01:16]}
31... Rxc1+ {[%clk 0:01:04.3]} 32. Rxc1 {[%clk 0:01:16.8]} 32... Rc8 {[%clk
0:01:05.9]} 33. Kg2 {[%clk 0:01:13.9]} 33... Rxc1 {[%clk 0:01:03.6]} 34. Qxc1
{[%clk 0:01:15.8]} 34... Kh7 {[%clk 0:01:01.3]} 35. Qh1+ {[%clk 0:01:15.8]}
35... Kg8 {[%clk 0:01:02.1]} 36. Qa1 {[%clk 0:01:17.2]} 36... Kh7 {[%clk
0:01:01.5]} 37. a4 {[%clk 0:01:12.6]} 37... Bd7 {[%clk 0:00:59.3]} 38. a5 {[%clk
0:01:07.8]} 38... Qh3+ {[%clk 0:00:57.1]} 39. Kg1 {[%clk 0:01:09.4]} 39... Qe6
{[%clk 0:00:59]} 40. Qc3 {[%clk 0:01:09.3]} 40... Bb5 {[%clk 0:00:56.8]} 41. Kg2
{[%clk 0:01:10]} 41... Bd7 {[%clk 0:00:55.6]} 42. Qc7 {[%clk 0:01:09.3]} 42...
Kg8 {[%clk 0:00:53.1]} 43. Kg1 {[%clk 0:01:07.6]} 43... Bb5 {[%clk 0:00:45.1]}
44. Qd8+ {[%clk 0:01:07.2]} 44... Kh7 {[%clk 0:00:45.7]} 45. Qc7 {[%clk
0:01:08.3]} 45... Kg8 {[%clk 0:00:45.8]} 46. Kg2 {[%clk 0:01:06.7]} 46... Bd7
{[%clk 0:00:46.2]} 47. Ne2 {[%clk 0:01:01.9]} 47... Qh3+ {[%clk 0:00:43.4]} 48.
Kg1 {[%clk 0:01:03.5]} 48... Bb5 {[%clk 0:00:38]} 49. Ng3 {[%clk 0:01:04.9]}
49... Qe6 {[%clk 0:00:35.9]} 50. f4 {[%clk 0:01:03.6]} 50... Bd7 {[%clk
0:00:34.2]} 51. f5 {[%clk 0:01:03.4]} 51... gxf5 {[%clk 0:00:32.8]} 52. Nh5
{[%clk 0:01:01.8]} 52... Qf7 {[%clk 0:00:34.1]} 53. Nf4 {[%clk 0:00:58.7]} 53...
Bh6 {[%clk 0:00:35.7]} 54. Qd8+ {[%clk 0:00:57]} 54... Kh7 {[%clk 0:00:36.3]}
55. Nh5 {[%clk 0:00:50.4]} 55... Qxh5 {[%clk 0:00:34.3]} 56. Qxd7+ {[%clk
0:00:50.6]} 56... Bg7 {[%clk 0:00:35.4]} 57. Qxd5 {[%clk 0:00:51.7]} 57... Qd1+
{[%clk 0:00:33.6]} 58. Kg2 {[%clk 0:00:46.9]} 58... Qg4+ {[%clk 0:00:33.6]} 59.
Kh1 {[%clk 0:00:48.3]} 59... Qh5+ {[%clk 0:00:31.7]} 60. Kg1 {[%clk 0:00:48.1]}
60... Qd1+ {[%clk 0:00:32.4]} 61. Kh2 {[%clk 0:00:49.5]} 61... Qh5+ {[%clk
0:00:32.5]} 62. Kg2 {[%clk 0:00:50.9]} 62... Qg4+ {[%clk 0:00:32]} 63. Kh1
{[%clk 0:00:52.5]} 63... Qd1+ {[%clk 0:00:31.2]} 64. Kh2 {[%clk 0:00:28]} 64...
Qh5+ {[%clk 0:00:31.1]} 65. Kg2 {[%clk 0:00:17.6]} 65... Qg4+ {[%clk 0:00:31.4]}
66. Kf1 {[%clk 0:00:14.1]} 66... Qd1+ {[%clk 0:00:32]} 67. Kg2 {[%clk
0:00:15.7]} 67... Qg4+ {[%clk 0:00:33.3]} 68. Kh2 {[%clk 0:00:10.9]} 68... Qh5+
{[%clk 0:00:34.1]} 69. Kg1 {[%clk 0:00:12.1]} 69... Qd1+ {[%clk 0:00:34.3]} 70.
Kh2 {[%clk 0:00:10.8]} 70... Qh5+ {[%clk 0:00:34.8]} 1/2-1/2

[Event "*** MasterClass Titled Tuesday Blitz"]
[Site "Chess.com"]
[Date "2017.11.07"]
[Round "2"]
[White "Rhinos1"]
[Black "LuisFSiles"]
[Result "0-1"]
[WhiteElo "2004"]
[BlackElo "2190"]
[TimeControl "180+2"]
[EndTime "14:31:59 PST"]
[Termination "LuisFSiles won by checkmate"]

1. e4 {[%clk 0:03:00]} 1... e5 {[%clk 0:03:00.9]} 2. Nf3 {[%clk 0:02:55.3]} 2...
Nc6 {[%clk 0:03:01.5]} 3. Bb5 {[%clk 0:02:53.9]} 3... Nge7 {[%clk 0:03:02.1]} 4.
Nc3 {[%clk 0:02:54.7]} 4... g6 {[%clk 0:03:01.1]} 5. O-O {[%clk 0:02:55.8]} 5...
Bg7 {[%clk 0:03:01.9]} 6. d3 {[%clk 0:02:54.5]} 6... O-O {[%clk 0:03:02.6]} 7.
Bg5 {[%clk 0:02:54.7]} 7... f6 {[%clk 0:03:03.3]} 8. Be3 {[%clk 0:02:54.5]} 8...
Kh8 {[%clk 0:03:04.4]} 9. Qd2 {[%clk 0:02:53.2]} 9... d5 {[%clk 0:03:04]} 10.
exd5 {[%clk 0:02:51.2]} 10... Nxd5 {[%clk 0:03:05.9]} 11. Nxd5 {[%clk
0:02:51.5]} 11... Qxd5 {[%clk 0:03:07.5]} 12. Bc4 {[%clk 0:02:53.1]} 12... Qd6
{[%clk 0:03:05.8]} 13. Bh6 {[%clk 0:02:49.2]} 13... Bg4 {[%clk 0:03:05.9]} 14.
Bxg7+ {[%clk 0:02:46.1]} 14... Kxg7 {[%clk 0:03:07.8]} 15. Qe3 {[%clk 0:02:41]}
15... Rae8 {[%clk 0:03:06.4]} 16. c3 {[%clk 0:02:33.7]} 16... a6 {[%clk
0:03:00.6]} 17. h3 {[%clk 0:02:33.7]} 17... Bc8 {[%clk 0:02:56.2]} 18. Rad1
{[%clk 0:02:34.4]} 18... Ne7 {[%clk 0:02:57.3]} 19. d4 {[%clk 0:02:30.6]} 19...
Nf5 {[%clk 0:02:56.9]} 20. Qc1 {[%clk 0:02:12.9]} 20... e4 {[%clk 0:02:56.6]}
21. Nh2 {[%clk 0:02:05.9]} 21... e3 {[%clk 0:02:50.8]} 22. Rde1 {[%clk
0:01:52.7]} 22... Qc6 {[%clk 0:02:28.7]} 23. Bd3 {[%clk 0:01:48.8]} 23... Nh4
{[%clk 0:02:28.8]} 24. f3 {[%clk 0:01:36.1]} 24... Qe6 {[%clk 0:02:15.6]} 25.
Be4 {[%clk 0:01:31.5]} 25... f5 {[%clk 0:02:11.7]} 26. Rxe3 {[%clk 0:01:26.3]}
26... fxe4 {[%clk 0:02:11.3]} 27. Rxe4 {[%clk 0:01:28.2]} 27... Qf6 {[%clk
0:02:06.9]} 28. Ng4 {[%clk 0:01:29.6]} 28... Bxg4 {[%clk 0:02:07]} 29. Rxg4
{[%clk 0:01:27.1]} 29... Nf5 {[%clk 0:02:06.7]} 30. Re4 {[%clk 0:01:08.3]} 30...
Nd6 {[%clk 0:02:03.9]} 31. Rxe8 {[%clk 0:00:48.8]} 31... Rxe8 {[%clk 0:02:05.8]}
32. Qc2 {[%clk 0:00:49.7]} 32... Qe6 {[%clk 0:01:56.4]} 33. Qa4 {[%clk
0:00:45.1]} 33... Re7 {[%clk 0:01:46.5]} 34. Qa5 {[%clk 0:00:42.1]} 34... Qf5
{[%clk 0:01:42.6]} 35. Qb4 {[%clk 0:00:38.8]} 35... Qe6 {[%clk 0:01:41.6]} 36.
Qc5 {[%clk 0:00:39.3]} 36... b6 {[%clk 0:01:42.2]} 37. Qa3 {[%clk 0:00:38.4]}
37... a5 {[%clk 0:01:43.6]} 38. Kh2 {[%clk 0:00:37.5]} 38... Nc4 {[%clk
0:01:43.9]} 39. Qa4 {[%clk 0:00:34.8]} 39... Ne3 {[%clk 0:01:38.9]} 40. Rf2
{[%clk 0:00:34.8]} 40... Qd6+ {[%clk 0:01:40.4]} 41. f4 {[%clk 0:00:35.1]} 41...
Nd5 {[%clk 0:01:39.6]} 42. Qc4 {[%clk 0:00:35]} 42... Nxf4 {[%clk 0:01:37.6]}
43. g3 {[%clk 0:00:28.7]} 43... Qe6 {[%clk 0:01:34.7]} 44. Qf1 {[%clk
0:00:26.2]} 44... Nd5 {[%clk 0:01:31.4]} 45. c4 {[%clk 0:00:21.7]} 45... Ne3
{[%clk 0:01:30.9]} 46. Qd3 {[%clk 0:00:22.2]} 46... Nf5 {[%clk 0:01:31.2]} 47.
d5 {[%clk 0:00:22]} 47... Qe3 {[%clk 0:01:29.8]} 48. Qxe3 {[%clk 0:00:20.8]}
48... Rxe3 {[%clk 0:01:31.4]} 49. g4 {[%clk 0:00:19.4]} 49... Nd6 {[%clk
0:01:32.8]} 50. b3 {[%clk 0:00:20.2]} 50... a4 {[%clk 0:01:33.3]} 51. b4 {[%clk
0:00:12.2]} 51... Nxc4 {[%clk 0:01:33.4]} 52. Rc2 {[%clk 0:00:13.8]} 52... b5
{[%clk 0:01:34.3]} 53. Rf2 {[%clk 0:00:12.3]} 53... Rd3 {[%clk 0:01:34.9]} 54.
Re2 {[%clk 0:00:12.7]} 54... Rd2 {[%clk 0:01:34.8]} 55. Rxd2 {[%clk 0:00:12.9]}
55... Nxd2 {[%clk 0:01:36]} 56. Kg3 {[%clk 0:00:14.8]} 56... Kf6 {[%clk
0:01:36.6]} 57. Kf4 {[%clk 0:00:16.7]} 57... g5+ {[%clk 0:01:37.3]} 58. Ke3
{[%clk 0:00:17.3]} 58... Nc4+ {[%clk 0:01:34.5]} 59. Kd4 {[%clk 0:00:18.5]}
59... Ke7 {[%clk 0:01:34]} 60. Kc5 {[%clk 0:00:19.8]} 60... Nd6 {[%clk
0:01:34.2]} 61. Kc6 {[%clk 0:00:20.6]} 61... Kd8 {[%clk 0:01:35.1]} 62. Kc5
{[%clk 0:00:20.6]} 62... Kd7 {[%clk 0:01:36.4]} 63. Kd4 {[%clk 0:00:22.2]} 63...
Nf7 {[%clk 0:01:36]} 64. Ke4 {[%clk 0:00:23.1]} 64... a3 {[%clk 0:01:33.6]} 65.
Kf5 {[%clk 0:00:24.1]} 65... Ke7 {[%clk 0:01:34.4]} 66. Ke4 {[%clk 0:00:23.1]}
66... Kf6 {[%clk 0:01:35.7]} 67. Kd4 {[%clk 0:00:23.9]} 67... Nd6 {[%clk
0:01:37]} 68. Kc5 {[%clk 0:00:25.2]} 68... Ke5 {[%clk 0:01:38.3]} 69. Kc6 {[%clk
0:00:26.6]} 69... Kd4 {[%clk 0:01:34.7]} 70. Kxc7 {[%clk 0:00:25]} 70... Kxd5
{[%clk 0:01:35.9]} 71. Kb6 {[%clk 0:00:26.7]} 71... Kc4 {[%clk 0:01:36.7]} 72.
Kc6 {[%clk 0:00:27.5]} 72... Kxb4 {[%clk 0:01:36.1]} 73. Kxd6 {[%clk 0:00:28.5]}
73... Kc4 {[%clk 0:01:37.7]} 74. Ke5 {[%clk 0:00:28.7]} 74... b4 {[%clk
0:01:38.3]} 75. Kf5 {[%clk 0:00:30.4]} 75... b3 {[%clk 0:01:38.6]} 76. axb3+
{[%clk 0:00:31.2]} 76... Kxb3 {[%clk 0:01:40.5]} 77. Kxg5 {[%clk 0:00:32.8]}
77... a2 {[%clk 0:01:41.9]} 78. Kh6 {[%clk 0:00:34.2]} 78... a1=Q {[%clk
0:01:42.9]} 79. Kxh7 {[%clk 0:00:35.5]} 79... Qh1 {[%clk 0:01:43.9]} 80. g5
{[%clk 0:00:34.7]} 80... Qxh3+ {[%clk 0:01:44.9]} 81. Kg7 {[%clk 0:00:35.5]}
81... Qd7+ {[%clk 0:01:45]} 82. Kh6 {[%clk 0:00:36.3]} 82... Qh3+ {[%clk
0:01:44.6]} 83. Kg7 {[%clk 0:00:36.9]} 83... Kc4 {[%clk 0:01:45.6]} 84. g6
{[%clk 0:00:37.9]} 84... Kd5 {[%clk 0:01:47]} 85. Kf8 {[%clk 0:00:36.7]} 85...
Qf5+ {[%clk 0:01:47.8]} 86. Kg7 {[%clk 0:00:37.2]} 86... Ke6 {[%clk 0:01:49.1]}
87. Kh8 {[%clk 0:00:36.9]} 87... Qf8+ {[%clk 0:01:44.6]} 88. Kh7 {[%clk
0:00:36.7]} 88... Kf6 {[%clk 0:01:45.9]} 89. g7 {[%clk 0:00:37.8]} 89... Qxg7#
{[%clk 0:01:47.5]} 0-1